[Event "*** Titled Tuesday Blitz"]
[Site "Chess.com"]
[Date "2021.02.16"]
[Round "9"]
[White "DamianoLew95"]
[Black "TC2304"]
[Result "1-0"]
[WhiteElo "2613"]
[BlackElo "2359"]
[TimeControl "180+1"]
[EndTime "11:50:19 PST"]
[Termination "DamianoLew95 won by resignation"]

1. e4 {[%clk 0:02:56.5]} 1... c5 {[%clk 0:02:59.9]} 2. Nf3 {[%clk 0:02:56.7]}
2... d6 {[%clk 0:03:00.5]} 3. d4 {[%clk 0:02:53.3]} 3... cxd4 {[%clk 0:03:01.4]}
4. Qxd4 {[%clk 0:02:53.1]} 4... Nf6 {[%clk 0:03:02.2]} 5. Nc3 {[%clk 0:02:52]}
5... Bd7 {[%clk 0:02:59.3]} 6. Bc4 {[%clk 0:02:50.3]} 6... Nc6 {[%clk
0:02:53.2]} 7. Qd3 {[%clk 0:02:48.3]} 7... Rc8 {[%clk 0:02:47]} 8. a3 {[%clk
0:02:44.6]} 8... Bg4 {[%clk 0:02:41.2]} 9. Bb3 {[%clk 0:02:22.3]} 9... e6 {[%clk
0:02:35.4]} 10. Bf4 {[%clk 0:02:16.4]} 10... Nh5 {[%clk 0:02:20.8]} 11. Bg5
{[%clk 0:01:59.8]} 11... Be7 {[%clk 0:01:58.7]} 12. Bxe7 {[%clk 0:01:57.7]}
12... Qxe7 {[%clk 0:01:59.6]} 13. Ne2 {[%clk 0:01:40.2]} 13... O-O {[%clk
0:01:51]} 14. O-O-O {[%clk 0:01:39.5]} 14... Rfd8 {[%clk 0:01:41.5]} 15. h3
{[%clk 0:01:30.8]} 15... Bxf3 {[%clk 0:01:38.3]} 16. Qxf3 {[%clk 0:01:31.7]}
16... Qg5+ {[%clk 0:01:37.5]} 17. Kb1 {[%clk 0:01:30.8]} 17... Ne5 {[%clk
0:01:37.5]} 18. h4 {[%clk 0:01:17.9]} 18... Qh6 {[%clk 0:01:07.3]} 19. Qh3
{[%clk 0:01:14.3]} 19... Nf4 {[%clk 0:01:05.2]} 20. Nxf4 {[%clk 0:01:06.3]}
20... Qxf4 {[%clk 0:01:04.9]} 21. f3 {[%clk 0:00:54.7]} 21... Nc4 {[%clk
0:01:01.1]} 22. Bxc4 {[%clk 0:00:51.5]} 22... Rxc4 {[%clk 0:01:00.8]} 23. Qh2
{[%clk 0:00:50.8]} 23... Qxh2 {[%clk 0:00:55.2]} 24. Rxh2 {[%clk 0:00:50.7]}
24... d5 {[%clk 0:00:53.3]} 25. exd5 {[%clk 0:00:48.6]} 25... Rc5 {[%clk
0:00:47.5]} 26. g3 {[%clk 0:00:28.1]} 26... Rcxd5 {[%clk 0:00:45.7]} 27. Rxd5
{[%clk 0:00:28.6]} 27... Rxd5 {[%clk 0:00:46.6]} 28. Kc1 {[%clk 0:00:28.2]}
28... Kf8 {[%clk 0:00:44.7]} 29. Re2 {[%clk 0:00:26.7]} 29... Ke7 {[%clk
0:00:42.5]} 30. Re3 {[%clk 0:00:24.5]} 30... Kd6 {[%clk 0:00:38.6]} 31. c4
{[%clk 0:00:19.7]} 31... Rd4 {[%clk 0:00:36.3]} 32. b3 {[%clk 0:00:18.8]} 32...
a6 {[%clk 0:00:31.8]} 33. Kc2 {[%clk 0:00:18.7]} 33... b5 {[%clk 0:00:31]} 34.
Kc3 {[%clk 0:00:18.7]} 34... Rd1 {[%clk 0:00:30.5]} 35. cxb5 {[%clk 0:00:18.9]}
35... axb5 {[%clk 0:00:28.8]} 36. Kb4 {[%clk 0:00:19.3]} 36... Kc6 {[%clk
0:00:25.1]} 37. Ka5 {[%clk 0:00:18.2]} 37... Rc1 {[%clk 0:00:18.3]} 38. Kb4
{[%clk 0:00:15.1]} 38... Rd1 {[%clk 0:00:16.5]} 39. Re4 {[%clk 0:00:13.2]} 39...
Rd3 {[%clk 0:00:15.6]} 40. Rf4 {[%clk 0:00:09.4]} 40... f6 {[%clk 0:00:15.9]}
41. h5 {[%clk 0:00:08.7]} 41... e5 {[%clk 0:00:15.8]} 42. Rg4 {[%clk 0:00:08.2]}
42... Rxf3 {[%clk 0:00:14.1]} 43. Rxg7 {[%clk 0:00:08]} 43... e4 {[%clk
0:00:13.7]} 44. Rxh7 {[%clk 0:00:06.4]} 44... e3 {[%clk 0:00:14.1]} 45. Re7
{[%clk 0:00:05.3]} 45... Rxg3 {[%clk 0:00:14.1]} 46. h6 {[%clk 0:00:05.7]} 46...
Rg4+ {[%clk 0:00:12.9]} 47. Kc3 {[%clk 0:00:05.3]} 47... Rh4 {[%clk 0:00:13.3]}
48. Kd3 {[%clk 0:00:05.7]} 48... Rxh6 {[%clk 0:00:12.5]} 49. Rxe3 {[%clk
0:00:05.4]} 49... f5 {[%clk 0:00:12.6]} 50. Re5 {[%clk 0:00:05.3]} 50... Rf6
{[%clk 0:00:12.4]} 51. Ke3 {[%clk 0:00:05.3]} 51... f4+ {[%clk 0:00:11.1]} 52.
Kf3 {[%clk 0:00:05.6]} 52... Rd6 {[%clk 0:00:10.6]} 53. Kxf4 {[%clk 0:00:05.8]}
53... Rd3 {[%clk 0:00:11.1]} 54. Re3 {[%clk 0:00:06.2]} 54... Rd1 {[%clk
0:00:10.6]} 55. Ke4 {[%clk 0:00:06.6]} 55... Ra1 {[%clk 0:00:11.1]} 56. b4
{[%clk 0:00:07.2]} 56... Rc1 {[%clk 0:00:09.8]} 57. Kd4 {[%clk 0:00:07.2]} 57...
Rd1+ {[%clk 0:00:09.9]} 58. Rd3 {[%clk 0:00:07.4]} 58... Rh1 {[%clk 0:00:10.4]}
59. Kc3 {[%clk 0:00:07]} 59... Rh4 {[%clk 0:00:10.6]} 60. Rf3 {[%clk 0:00:06.8]}
60... Rc4+ {[%clk 0:00:10.3]} 61. Kb3 {[%clk 0:00:06]} 61... Rh4 {[%clk
0:00:11.2]} 62. Rf6+ {[%clk 0:00:05.8]} 62... Kc7 {[%clk 0:00:11.8]} 63. Kc3
{[%clk 0:00:05]} 63... Rh3+ {[%clk 0:00:12.1]} 64. Kd4 {[%clk 0:00:05.4]} 64...
Rxa3 {[%clk 0:00:12]} 65. Kc5 {[%clk 0:00:05.8]} 65... Re3 {[%clk 0:00:11.7]}
66. Kxb5 {[%clk 0:00:03.9]} 66... Kb7 {[%clk 0:00:10.9]} 67. Rf7+ {[%clk
0:00:03.9]} 67... Kb8 {[%clk 0:00:11.3]} 68. Rf6 {[%clk 0:00:04.1]} 68... Re1
{[%clk 0:00:10.1]} 69. Kb6 {[%clk 0:00:03.4]} 69... Kc8 {[%clk 0:00:09.1]} 70.
Rf8+ {[%clk 0:00:02.8]} 70... Kd7 {[%clk 0:00:08.2]} 71. b5 {[%clk 0:00:03.2]}
71... Rb1 {[%clk 0:00:05.6]} 72. Ka6 {[%clk 0:00:02.9]} 72... Kc7 {[%clk
0:00:05]} 73. Rf7+ {[%clk 0:00:03.3]} 73... Kd6 {[%clk 0:00:04.8]} 74. Kb6
{[%clk 0:00:03]} 74... Ra1 {[%clk 0:00:04.4]} 75. Kb7 {[%clk 0:00:03]} 75... Rb1
{[%clk 0:00:04.8]} 76. b6 {[%clk 0:00:03.6]} 76... Rb2 {[%clk 0:00:04.9]} 77.
Rh7 {[%clk 0:00:04.1]} 77... Rb1 {[%clk 0:00:05.3]} 78. Rh6+ {[%clk 0:00:04.7]}
78... Kd7 {[%clk 0:00:05]} 79. Rh7+ {[%clk 0:00:05.2]} 79... Kd6 {[%clk
0:00:05.5]} 80. Rh6+ {[%clk 0:00:05.9]} 80... Kd7 {[%clk 0:00:06]} 81. Rh3
{[%clk 0:00:06.5]} 81... Rb2 {[%clk 0:00:06.1]} 82. Rd3+ {[%clk 0:00:06.8]}
82... Ke8 {[%clk 0:00:05.7]} 83. Ka7 {[%clk 0:00:07.1]} 83... Ra2+ {[%clk
0:00:05.7]} 84. Kb8 {[%clk 0:00:07.3]} 84... Rb2 {[%clk 0:00:05.8]} 85. b7
{[%clk 0:00:07.8]} 85... Rb4 {[%clk 0:00:06.3]} 86. Ra3 {[%clk 0:00:07.6]} 86...
Kd7 {[%clk 0:00:06.1]} 87. Ka8 {[%clk 0:00:07.6]} 87... Kc7 {[%clk 0:00:04.6]}
88. Rc3+ {[%clk 0:00:07.7]} 88... Kd6 {[%clk 0:00:02.4]} 89. b8=Q+ {[%clk
0:00:07.8]} 1-0

[Event "*** Titled Tuesday Blitz"]
[Site "Chess.com"]
[Date "2021.02.16"]
[Round "9"]
[White "FairChess_on_YouTube"]
[Black "GM_Crest"]
[Result "1/2-1/2"]
[WhiteElo "2925"]
[BlackElo "2753"]
[TimeControl "180+1"]
[EndTime "11:50:20 PST"]
[Termination "Game drawn by stalemate"]

1. a4 {[%clk 0:03:00.9]} 1... a5 {[%clk 0:02:57.6]} 2. g3 {[%clk 0:03:00.5]}
2... d5 {[%clk 0:02:56.9]} 3. Bg2 {[%clk 0:03:00.7]} 3... Nf6 {[%clk 0:02:55.3]}
4. Nf3 {[%clk 0:03:00.1]} 4... c6 {[%clk 0:02:52.7]} 5. O-O {[%clk 0:02:59.1]}
5... Bg4 {[%clk 0:02:52.7]} 6. d3 {[%clk 0:02:57.9]} 6... Nbd7 {[%clk 0:02:52]}
7. Nbd2 {[%clk 0:02:58.2]} 7... e5 {[%clk 0:02:50.6]} 8. e4 {[%clk 0:02:58.4]}
8... dxe4 {[%clk 0:02:50.5]} 9. dxe4 {[%clk 0:02:58.2]} 9... Bc5 {[%clk
0:02:50.4]} 10. Qe1 {[%clk 0:02:53.5]} 10... O-O {[%clk 0:02:49.2]} 11. h3
{[%clk 0:02:51.8]} 11... Bh5 {[%clk 0:02:48.7]} 12. b3 {[%clk 0:02:48.7]} 12...
Re8 {[%clk 0:02:47.1]} 13. Bb2 {[%clk 0:02:48.1]} 13... b5 {[%clk 0:02:40.1]}
14. Kh1 {[%clk 0:02:42.9]} 14... Qb6 {[%clk 0:02:39.4]} 15. Nh4 {[%clk
0:02:37.1]} 15... Bd4 {[%clk 0:02:30.6]} 16. c3 {[%clk 0:02:22.4]} 16... Bc5
{[%clk 0:02:30.2]} 17. f4 {[%clk 0:02:15.8]} 17... exf4 {[%clk 0:02:28.3]} 18.
gxf4 {[%clk 0:02:16.7]} 18... Nd5 {[%clk 0:02:26.1]} 19. b4 {[%clk 0:01:45.5]}
19... axb4 {[%clk 0:01:48.7]} 20. a5 {[%clk 0:01:45.6]} 20... Qc7 {[%clk
0:01:32.5]} 21. cxb4 {[%clk 0:01:44]} 21... Nxb4 {[%clk 0:01:26]} 22. Nf5 {[%clk
0:01:37.4]} 22... Bf8 {[%clk 0:01:23]} 23. Nb3 {[%clk 0:00:44.3]} 23... Nd3
{[%clk 0:01:18.4]} 24. Qh4 {[%clk 0:00:43.9]} 24... Nxb2 {[%clk 0:00:53.2]} 25.
Qxh5 {[%clk 0:00:42.5]} 25... g6 {[%clk 0:00:42.2]} 26. Qg5 {[%clk 0:00:39.3]}
26... Qd8 {[%clk 0:00:37.6]} 27. Qg3 {[%clk 0:00:37.3]} 27... Nf6 {[%clk
0:00:35.1]} 28. e5 {[%clk 0:00:34.7]} 28... Nh5 {[%clk 0:00:34.8]} 29. Qg4
{[%clk 0:00:22.8]} 29... Qc8 {[%clk 0:00:35]} 30. Nfd4 {[%clk 0:00:15.1]} 30...
Qxg4 {[%clk 0:00:34.3]} 31. hxg4 {[%clk 0:00:15.7]} 31... Ng3+ {[%clk
0:00:34.8]} 32. Kh2 {[%clk 0:00:14.1]} 32... Nxf1+ {[%clk 0:00:35.4]} 33. Rxf1
{[%clk 0:00:14]} 33... Ra7 {[%clk 0:00:19.1]} 34. Nxc6 {[%clk 0:00:12.8]} 34...
Rc7 {[%clk 0:00:19.2]} 35. a6 {[%clk 0:00:12.2]} 35... Nc4 {[%clk 0:00:17.7]}
36. Ra1 {[%clk 0:00:08.3]} 36... g5 {[%clk 0:00:16.4]} 37. Nbd4 {[%clk
0:00:07.1]} 37... gxf4 {[%clk 0:00:15.5]} 38. Nxb5 {[%clk 0:00:07.1]} 38... Rd7
{[%clk 0:00:15.7]} 39. a7 {[%clk 0:00:07.1]} 39... Nb6 {[%clk 0:00:15.9]} 40.
Be4 {[%clk 0:00:05.4]} 40... Bg7 {[%clk 0:00:14]} 41. Kg2 {[%clk 0:00:05.4]}
41... Na8 {[%clk 0:00:13.7]} 42. Kf3 {[%clk 0:00:04.5]} 42... Bxe5 {[%clk
0:00:13.9]} 43. Nxe5 {[%clk 0:00:04.2]} 43... Rxe5 {[%clk 0:00:13.9]} 44. Bxa8
{[%clk 0:00:04.7]} 44... Rxb5 {[%clk 0:00:13.6]} 45. Bc6 {[%clk 0:00:04.8]}
45... Rb3+ {[%clk 0:00:13.3]} 46. Kxf4 {[%clk 0:00:04.7]} 46... Rb4+ {[%clk
0:00:13.5]} 47. Kg3 {[%clk 0:00:04.3]} 47... Rd3+ {[%clk 0:00:13.1]} 48. Kh4
{[%clk 0:00:03.9]} 48... Rd8 {[%clk 0:00:13.3]} 49. a8=Q {[%clk 0:00:04]} 49...
Rxa8 {[%clk 0:00:13.6]} 50. Rxa8+ {[%clk 0:00:04.7]} 50... Kg7 {[%clk
0:00:14.1]} 51. Kg3 {[%clk 0:00:04.9]} 51... Rc4 {[%clk 0:00:13.2]} 52. Bf3
{[%clk 0:00:04.3]} 52... Rc5 {[%clk 0:00:13.2]} 53. Ra6 {[%clk 0:00:04.2]} 53...
Rc7 {[%clk 0:00:12.9]} 54. Kf4 {[%clk 0:00:04.1]} 54... Re7 {[%clk 0:00:12.9]}
55. Be4 {[%clk 0:00:04.2]} 55... h6 {[%clk 0:00:12.1]} 56. Ra5 {[%clk
0:00:04.4]} 56... Rc7 {[%clk 0:00:11.9]} 57. Rb5 {[%clk 0:00:03.8]} 57... Re7
{[%clk 0:00:11.9]} 58. Rb7 {[%clk 0:00:03.7]} 58... Re6 {[%clk 0:00:09.3]} 59.
Bf5 {[%clk 0:00:02.8]} 59... Rd6 {[%clk 0:00:08.8]} 60. Ke5 {[%clk 0:00:02.8]}
60... Ra6 {[%clk 0:00:08.7]} 61. Be4 {[%clk 0:00:03]} 61... Re6+ {[%clk
0:00:07.6]} 62. Kf4 {[%clk 0:00:03]} 62... Rf6+ {[%clk 0:00:07.7]} 63. Bf5
{[%clk 0:00:03.3]} 63... Ra6 {[%clk 0:00:07.7]} 64. Rc7 {[%clk 0:00:03.5]} 64...
Rb6 {[%clk 0:00:07.1]} 65. Ra7 {[%clk 0:00:03.6]} 65... Rc6 {[%clk 0:00:06.4]}
66. Be4 {[%clk 0:00:03.8]} 66... Rf6+ {[%clk 0:00:06.2]} 67. Ke5 {[%clk
0:00:04.2]} 67... Re6+ {[%clk 0:00:06.4]} 68. Kf4 {[%clk 0:00:04.4]} 68... Rb6
{[%clk 0:00:06.4]} 69. Bd5 {[%clk 0:00:04.4]} 69... Rf6+ {[%clk 0:00:06]} 70.
Ke5 {[%clk 0:00:04.9]} 70... Rf2 {[%clk 0:00:05.8]} 71. Bc4 {[%clk 0:00:05]}
71... Rf3 {[%clk 0:00:05.2]} 72. Rb7 {[%clk 0:00:04.8]} 72... Rf2 {[%clk
0:00:05.2]} 73. Bd5 {[%clk 0:00:05]} 73... Rf1 {[%clk 0:00:05]} 74. Rb4 {[%clk
0:00:05.4]} 74... Re1+ {[%clk 0:00:04.3]} 75. Re4 {[%clk 0:00:05.2]} 75... Rf1
{[%clk 0:00:03.7]} 76. Rf4 {[%clk 0:00:05.2]} 76... Rxf4 {[%clk 0:00:02.2]} 77.
Kxf4 {[%clk 0:00:06.1]} 77... Kf6 {[%clk 0:00:02.1]} 78. Be4 {[%clk 0:00:05.1]}
78... Ke6 {[%clk 0:00:01.7]} 79. Bf5+ {[%clk 0:00:05]} 79... Kf6 {[%clk
0:00:02]} 80. Bd3 {[%clk 0:00:04.4]} 80... Ke6 {[%clk 0:00:02.4]} 81. Be4 {[%clk
0:00:04.6]} 81... Kf6 {[%clk 0:00:02.7]} 82. Bf5 {[%clk 0:00:05]} 82... Kg7
{[%clk 0:00:01.4]} 83. Ke5 {[%clk 0:00:05.3]} 83... f6+ {[%clk 0:00:01.6]} 84.
Ke6 {[%clk 0:00:04.8]} 84... h5 {[%clk 0:00:02.1]} 85. gxh5 {[%clk 0:00:04.7]}
85... Kh8 {[%clk 0:00:02.2]} 86. Kxf6 {[%clk 0:00:04.6]} 86... Kg8 {[%clk
0:00:02.4]} 87. h6 {[%clk 0:00:05.5]} 87... Kh8 {[%clk 0:00:02.7]} 88. h7 {[%clk
0:00:06.3]} 1/2-1/2

[Event "*** Titled Tuesday Blitz"]
[Site "Chess.com"]
[Date "2021.02.16"]
[Round "10"]
[White "PawnEatingZombie"]
[Black "tylityli"]
[Result "0-1"]
[WhiteElo "2126"]
[BlackElo "2204"]
[TimeControl "180+1"]
[EndTime "11:52:35 PST"]
[Termination "tylityli won by resignation"]

1. d4 {[%clk 0:03:00.9]} 1... Nf6 {[%clk 0:02:59.2]} 2. c4 {[%clk 0:03:00.9]}
2... e6 {[%clk 0:02:59.1]} 3. Nc3 {[%clk 0:03:01.4]} 3... Bb4 {[%clk 0:02:58.4]}
4. Qc2 {[%clk 0:03:01.7]} 4... O-O {[%clk 0:02:57.8]} 5. e4 {[%clk 0:03:01.1]}
5... d5 {[%clk 0:02:58]} 6. e5 {[%clk 0:03:00.9]} 6... Ne4 {[%clk 0:02:58]} 7.
Bd3 {[%clk 0:03:01.1]} 7... c5 {[%clk 0:02:57.7]} 8. Nf3 {[%clk 0:03:01.4]} 8...
Nc6 {[%clk 0:02:57.4]} 9. O-O {[%clk 0:03:00.3]} 9... Nxd4 {[%clk 0:02:52.7]}
10. Nxe4 {[%clk 0:02:59.4]} 10... Nxc2 {[%clk 0:02:51.5]} 0-1

[Event "*** Titled Tuesday Blitz"]
[Site "Chess.com"]
[Date "2021.02.16"]
[Round "10"]
[White "Mr_Heisenberg13"]
[Black "rynos0411"]
[Result "1-0"]
[WhiteElo "2705"]
[BlackElo "2495"]
[TimeControl "180+1"]
[EndTime "11:53:08 PST"]
[Termination "Mr_Heisenberg13 won by resignation"]

1. e4 {[%clk 0:03:00.9]} 1... c6 {[%clk 0:03:00.2]} 2. d4 {[%clk 0:03:00.6]}
2... d5 {[%clk 0:03:00.5]} 3. e5 {[%clk 0:03:01.1]} 3... Bf5 {[%clk 0:03:00.3]}
4. h4 {[%clk 0:03:01.2]} 4... h5 {[%clk 0:03:00.5]} 5. Bg5 {[%clk 0:03:01.3]}
5... Qb6 {[%clk 0:02:58.8]} 6. Bd3 {[%clk 0:03:01.6]} 6... Bxd3 {[%clk
0:02:51.7]} 7. Qxd3 {[%clk 0:03:02.5]} 7... e6 {[%clk 0:02:48.5]} 8. Nd2 {[%clk
0:03:02]} 8... Ne7 {[%clk 0:02:44.6]} 9. Ngf3 {[%clk 0:03:01.2]} 9... Nf5 {[%clk
0:02:44.9]} 10. O-O {[%clk 0:03:01]} 10... c5 {[%clk 0:02:45.1]} 11. c4 {[%clk
0:03:00.5]} 11... cxd4 {[%clk 0:02:27.8]} 12. cxd5 {[%clk 0:02:58.6]} 12... exd5
{[%clk 0:02:27.8]} 13. Qxf5 {[%clk 0:02:58.3]} 1-0

[Event "*** Titled Tuesday Blitz"]
[Site "Chess.com"]
[Date "2021.02.16"]
[Round "10"]
[White "BahadirOzen"]
[Black "JoakimVonAnd"]
[Result "1/2-1/2"]
[WhiteElo "2735"]
[BlackElo "2573"]
[TimeControl "180+1"]
[EndTime "11:53:57 PST"]
[Termination "Game drawn by agreement"]

1. g3 {[%clk 0:03:00.9]} 1... d5 {[%clk 0:02:59.3]} 2. Bg2 {[%clk 0:03:01.3]}
2... g6 {[%clk 0:02:59.8]} 3. Nf3 {[%clk 0:03:00]} 3... Bg7 {[%clk 0:03:00]} 4.
d4 {[%clk 0:02:59]} 4... Nf6 {[%clk 0:02:58.3]} 5. O-O {[%clk 0:02:59.1]} 5...
O-O {[%clk 0:02:57.4]} 6. c3 {[%clk 0:02:59.1]} 6... b6 {[%clk 0:02:55.3]} 7.
Bf4 {[%clk 0:02:54.7]} 7... c5 {[%clk 0:02:54.8]} 8. Nbd2 {[%clk 0:02:36.7]}
8... Nbd7 {[%clk 0:02:54.4]} 9. Ne5 {[%clk 0:02:36.3]} 9... Bb7 {[%clk
0:02:49.3]} 10. Qa4 {[%clk 0:02:34.2]} 10... a6 {[%clk 0:02:44.8]} 11. Rad1
{[%clk 0:02:27.4]} 11... b5 {[%clk 0:02:39.6]} 12. Qa3 {[%clk 0:02:27.1]} 12...
c4 {[%clk 0:02:40]} 13. Nxd7 {[%clk 0:02:22.6]} 13... Qxd7 {[%clk 0:02:35.1]}
14. Be5 {[%clk 0:02:21.9]} 14... Bc6 {[%clk 0:02:32.8]} 15. Qa5 {[%clk 0:02:16]}
1/2-1/2

[Event "*** Titled Tuesday Blitz"]
[Site "Chess.com"]
[Date "2021.02.16"]
[Round "10"]
[White "Maddie"]
[Black "MerryPoppies"]
[Result "1-0"]
[WhiteElo "2049"]
[BlackElo "2156"]
[TimeControl "180+1"]
[EndTime "11:55:26 PST"]
[Termination "Maddie won by resignation"]

1. d4 {[%clk 0:03:00.9]} 1... d5 {[%clk 0:02:55.9]} 2. e3 {[%clk 0:03:00.8]}
2... Nf6 {[%clk 0:02:55.1]} 3. Bd3 {[%clk 0:03:01]} 3... c5 {[%clk 0:02:54.3]}
4. c3 {[%clk 0:03:00.8]} 4... Nc6 {[%clk 0:02:53.8]} 5. f4 {[%clk 0:03:00.6]}
5... Bg4 {[%clk 0:02:50.5]} 6. Nf3 {[%clk 0:03:00.8]} 6... e6 {[%clk 0:02:48]}
7. O-O {[%clk 0:02:56.4]} 7... Ne4 {[%clk 0:02:46.3]} 8. Qe1 {[%clk 0:02:52.6]}
8... f5 {[%clk 0:02:40.5]} 9. Ne5 {[%clk 0:02:52.5]} 9... Nxe5 {[%clk
0:02:35.8]} 10. fxe5 {[%clk 0:02:52.1]} 10... Be7 {[%clk 0:02:34.3]} 11. Nd2
{[%clk 0:02:48.8]} 11... Bh4 {[%clk 0:02:30]} 12. Bb5+ {[%clk 0:02:46.1]} 12...
Kf8 {[%clk 0:02:17.9]} 13. g3 {[%clk 0:02:45.3]} 13... Bg5 {[%clk 0:02:12.3]}
14. Nxe4 {[%clk 0:02:42]} 14... dxe4 {[%clk 0:02:11.8]} 15. Be2 {[%clk
0:02:41.8]} 15... Bxe2 {[%clk 0:02:03.1]} 16. Qxe2 {[%clk 0:02:41]} 16... Ke7
{[%clk 0:02:01.7]} 17. Qb5 {[%clk 0:02:38]} 17... Qd7 {[%clk 0:01:59.9]} 18.
Qxc5+ {[%clk 0:02:36.8]} 18... Kf7 {[%clk 0:01:59.2]} 19. Qc4 {[%clk 0:02:20.5]}
19... Rac8 {[%clk 0:01:53.1]} 20. Qb3 {[%clk 0:02:18.7]} 20... Rhe8 {[%clk
0:01:42.9]} 21. Rxf5+ {[%clk 0:02:13.8]} 21... Kg6 {[%clk 0:01:41.9]} 22. Rf1
{[%clk 0:02:10.9]} 22... Rf8 {[%clk 0:01:41.1]} 23. Bd2 {[%clk 0:02:10.6]} 23...
Rf3 {[%clk 0:01:40.6]} 24. Qc2 {[%clk 0:02:07.2]} 24... Qd5 {[%clk 0:01:33.2]}
25. Rxf3 {[%clk 0:02:03.8]} 1-0

[Event "*** Titled Tuesday Blitz"]
[Site "Chess.com"]
[Date "2021.02.16"]
[Round "10"]
[White "szefru"]
[Black "DanilNajdin"]
[Result "0-1"]
[WhiteElo "2249"]
[BlackElo "2449"]
[TimeControl "180+1"]
[EndTime "11:55:56 PST"]
[Termination "DanilNajdin won by resignation"]

1. b3 {[%clk 0:03:00.9]} 1... e5 {[%clk 0:02:59.2]} 2. Bb2 {[%clk 0:03:01.2]}
2... Nc6 {[%clk 0:02:56.6]} 3. e3 {[%clk 0:03:01.4]} 3... Nf6 {[%clk 0:02:56.7]}
4. Ne2 {[%clk 0:03:01.4]} 4... d5 {[%clk 0:02:55.8]} 5. d4 {[%clk 0:03:01.4]}
5... Bd6 {[%clk 0:02:50.1]} 6. Ng3 {[%clk 0:02:58.8]} 6... exd4 {[%clk
0:02:48.8]} 7. exd4 {[%clk 0:02:54.4]} 7... Bg4 {[%clk 0:02:45.3]} 8. Be2 {[%clk
0:02:53.5]} 8... Bxe2 {[%clk 0:02:39.8]} 9. Qxe2+ {[%clk 0:02:54.4]} 9... Ne7
{[%clk 0:02:40.2]} 10. O-O {[%clk 0:02:53.4]} 10... O-O {[%clk 0:02:39.7]} 11.
Nd2 {[%clk 0:02:51.7]} 11... Ng6 {[%clk 0:02:37.5]} 12. Nf5 {[%clk 0:02:49.3]}
12... Re8 {[%clk 0:02:36.3]} 13. Qf3 {[%clk 0:02:46.7]} 13... Ne7 {[%clk
0:02:30.5]} 14. c4 {[%clk 0:02:33]} 14... Nxf5 {[%clk 0:02:29.6]} 15. Qxf5
{[%clk 0:02:33.7]} 15... c6 {[%clk 0:02:27.8]} 16. Nf3 {[%clk 0:02:31.6]} 16...
Qd7 {[%clk 0:02:25.3]} 17. Qg5 {[%clk 0:02:25.8]} 17... Re2 {[%clk 0:02:20.5]}
18. Rab1 {[%clk 0:02:21.5]} 18... Ne4 {[%clk 0:02:09.8]} 19. Qh4 {[%clk
0:02:15.1]} 19... Nd2 {[%clk 0:02:08.3]} 20. Nxd2 {[%clk 0:02:14.1]} 20... Rxd2
{[%clk 0:02:08.7]} 21. Rfe1 {[%clk 0:02:11.6]} 21... Re8 {[%clk 0:02:07.4]} 22.
Rxe8+ {[%clk 0:01:47.5]} 22... Qxe8 {[%clk 0:02:08.3]} 23. Bc3 {[%clk
0:01:34.4]} 23... Rxa2 {[%clk 0:02:05.7]} 24. Qg4 {[%clk 0:01:27.8]} 24... g6
{[%clk 0:01:59.5]} 25. h4 {[%clk 0:01:26.1]} 25... Qe4 {[%clk 0:01:58.3]} 26.
Qc8+ {[%clk 0:01:24.9]} 26... Kg7 {[%clk 0:01:58.1]} 27. Qxb7 {[%clk 0:01:24.8]}
27... Qxb1+ {[%clk 0:01:56.4]} 0-1

[Event "*** Titled Tuesday Blitz"]
[Site "Chess.com"]
[Date "2021.02.16"]
[Round "10"]
[White "juancruzarias"]
[Black "szachuspl"]
[Result "1-0"]
[WhiteElo "2639"]
[BlackElo "2471"]
[TimeControl "180+1"]
[EndTime "11:56:07 PST"]
[Termination "juancruzarias won by checkmate"]

1. e4 {[%clk 0:03:00.9]} 1... c5 {[%clk 0:02:59.8]} 2. Nc3 {[%clk 0:03:01]} 2...
Nc6 {[%clk 0:02:58.5]} 3. g3 {[%clk 0:03:01.4]} 3... g6 {[%clk 0:02:58.5]} 4.
Bg2 {[%clk 0:03:02]} 4... Bg7 {[%clk 0:02:59.1]} 5. d3 {[%clk 0:03:02.6]} 5...
e6 {[%clk 0:02:59.1]} 6. f4 {[%clk 0:03:03.3]} 6... d6 {[%clk 0:02:59.1]} 7. Nf3
{[%clk 0:03:03.8]} 7... Nge7 {[%clk 0:02:59.5]} 8. O-O {[%clk 0:03:04.4]} 8...
O-O {[%clk 0:02:59.6]} 9. h3 {[%clk 0:03:04.5]} 9... Nd4 {[%clk 0:02:58.4]} 10.
g4 {[%clk 0:03:02.2]} 10... f5 {[%clk 0:02:58.7]} 11. Bd2 {[%clk 0:03:00]} 11...
Bd7 {[%clk 0:02:57.1]} 12. Rb1 {[%clk 0:02:59.8]} 12... Rb8 {[%clk 0:02:54.2]}
13. Ne2 {[%clk 0:03:00.2]} 13... Nec6 {[%clk 0:02:52.3]} 14. Ng3 {[%clk
0:03:00.1]} 14... Nxf3+ {[%clk 0:02:46.5]} 15. Bxf3 {[%clk 0:02:59.2]} 15... Nd4
{[%clk 0:02:46.5]} 16. Bg2 {[%clk 0:02:59.8]} 16... Qh4 {[%clk 0:02:44]} 17. Be1
{[%clk 0:02:59.6]} 17... Qe7 {[%clk 0:02:43.1]} 18. c3 {[%clk 0:02:59.5]} 18...
Nc6 {[%clk 0:02:43]} 19. Qe2 {[%clk 0:02:59.9]} 19... Qf7 {[%clk 0:02:38.5]} 20.
Bd2 {[%clk 0:02:57.7]} 20... Kh8 {[%clk 0:02:38.7]} 21. Rbe1 {[%clk 0:02:57.5]}
21... b5 {[%clk 0:02:38.4]} 22. gxf5 {[%clk 0:02:54.4]} 22... gxf5 {[%clk
0:02:37.1]} 23. Nh5 {[%clk 0:02:53.5]} 23... Bh6 {[%clk 0:02:28.7]} 24. exf5
{[%clk 0:02:47.3]} 24... exf5 {[%clk 0:02:26.7]} 25. Ng3 {[%clk 0:02:42.2]}
25... b4 {[%clk 0:02:21.4]} 26. Kh2 {[%clk 0:02:41.2]} 26... Rg8 {[%clk
0:02:19.5]} 27. Rg1 {[%clk 0:02:41.1]} 27... Rbe8 {[%clk 0:02:06.6]} 28. Qf2
{[%clk 0:02:39.8]} 28... Qxa2 {[%clk 0:02:01.1]} 29. Bxc6 {[%clk 0:02:31.4]}
29... Bxc6 {[%clk 0:01:59.8]} 30. Rxe8 {[%clk 0:02:24.3]} 30... Rxe8 {[%clk
0:01:58.4]} 31. Nxf5 {[%clk 0:02:24.9]} 31... Bf8 {[%clk 0:01:54.4]} 32. cxb4
{[%clk 0:02:24.6]} 32... Qxb2 {[%clk 0:01:49]} 33. bxc5 {[%clk 0:02:13.8]} 33...
Qf6 {[%clk 0:01:48.5]} 34. Nxd6 {[%clk 0:02:08.6]} 34... Rb8 {[%clk 0:01:40.4]}
35. Qd4 {[%clk 0:01:56.5]} 35... Bg7 {[%clk 0:01:33.7]} 36. Qxf6 {[%clk
0:01:57]} 36... Bxf6 {[%clk 0:01:27.8]} 37. Nf7# {[%clk 0:01:56.8]} 1-0